bitfinex/quotes_SOLUSD_20241021
["timestamp","ask_amount","ask_price","bid_price","bid_amount"]
[1729503351471,6.0229,166.04,165.98,23.776884]
[1729503352590,1.03514966,166.09,166.02,0.1]
[1729503352894,6.0215,166.08,166.0,0.1]
[1729503354779,6.0207,166.1,166.01,0.1]
[1729503355073,6.0207,166.1,166.01,0.2]
[1729503355274,15.0491,166.13,166.02,23.776884]
[1729503355275,6.0208,166.09,166.02,23.776884]
[1729503356395,6.0204,166.11,166.02,23.776884]
[1729503356691,6.02,166.12,166.02,23.776884]
[1729503356872,6.0204,166.11,166.02,23.776884]
[1729503357072,6.21316088,166.16,166.06,23.776884]
[1729503357277,6.0193,166.14,166.06,23.776884]
[1729503357479,6.019,166.14,166.06,23.776884]
[1729503359383,6.2955,166.18,166.06,23.776884]
[1729503359580,6.0193,166.13,166.06,23.776884]
[1729503360499,6.21175236,166.16,166.07,0.1]
[1729503360684,16.0397,166.19,166.07,0.1]
[1729503360685,6.0187,166.15,166.07,0.1]
[1729503361579,6.21099497,166.2,166.11,0.1]
[1729503361786,6.21099497,166.2,166.05,21.4526]
[1729503361787,16.4124,166.24,166.14,23.776884]
[1729503362176,6.0161,166.22,166.14,23.776884]
[1729503362376,6.0164,166.21,166.14,23.776884]
[1729503363274,6.0161,166.22,166.14,23.776884]
[1729503363477,6.0164,166.21,166.14,23.776884]
[1729503364086,6.016,166.23,166.14,23.876884]
[1729503364283,6.0154,166.24,166.15,0.1]
[1729503364493,6.0149,166.26,166.17,0.1]
[1729503364690,15.0339,166.3,166.17,0.1]
[1729503364884,6.0135,166.3,166.19,0.1]
[1729503365093,22.3776,166.31,166.18,23.776884]
[1729503365094,6.0143,166.27,166.18,23.976884]
[1729503365292,6.0143,166.27,166.19,0.1]
[1729503365479,6.0139,166.29,166.19,0.1]
[1729503365802,6.0141,166.28,166.19,0.1]
[1729503366101,6.0141,166.28,166.21,23.776884]
[1729503366898,6.0144,166.27,166.21,23.776884]
[1729503367097,6.0135,166.3,166.21,23.776884]
[1729503367282,14.5303,166.33,166.21,23.776884]
[1729503367482,6.0142,166.28,166.21,23.776884]
[1729503367886,6.0135,166.3,166.21,23.876884]
[1729503368074,6.0127,166.32,166.23,23.776884]
[1729503368282,22.0306,166.35,166.23,23.776884]
[1729503368700,6.0132,166.3,166.23,23.776884]
[1729503369797,6.013,166.31,166.23,23.876884]
[1729503369993,22.0306,166.35,166.23,23.776884]
[1729503370301,22.0306,166.35,166.23,23.976884]
[1729503370608,6.0123,166.33,166.24,0.1]
[1729503371580,6.0125,166.32,166.24,0.1]
[1729503371999,6.011,166.36,166.24,0.1]
[1729503372193,30.0553,166.36,166.22,6.1344]
[1729503372392,15.0294,166.34,166.22,6.1344]
[1729503373505,6.0134,166.3,166.22,6.1344]
[1729503373902,6.0134,166.3,166.23,23.776884]
[1729503374590,6.0127,166.32,166.23,23.776884]
[1729503374789,30.0526,166.38,166.23,23.776884]
[1729503374998,6.0129,166.31,166.23,23.776884]
[1729503376199,15.0276,166.36,166.23,23.776884]
[1729503376394,6.0128,166.32,166.23,23.776884]
[1729503376585,15.0276,166.36,166.23,23.876884]
[1729503376911,6.0121,166.33,166.25,23.776884]
[1729503378592,6.0125,166.33,166.25,23.776884]
[1729503378789,6.0132,166.3,166.25,23.776884]
[1729503379092,15.0267,166.37,166.25,23.776884]
[1729503379608,28.86078463,166.39,166.27,23.776884]
[1729503379793,6.0115,166.35,166.27,23.776884]
[1729503379987,6.0115,166.35,166.29,23.776884]
[1729503380404,6.011,166.36,166.29,23.776884]
[1729503380607,6.0101,166.39,166.29,23.776884]
[1729503380788,6.0103,166.38,166.29,23.776884]
[1729503380992,29.5368207,166.43,166.29,23.776884]
[1729503381584,6.0116,166.35,166.29,23.776884]
[1729503383001,7.2361207,166.43,166.32,15.2229]
[1729503383227,6.0086,166.43,166.33,23.776884]
[1729503383502,6.0095,166.41,166.35,23.776884]
[1729503384102,6.0095,166.41,166.36,1.50418655]
[1729503384283,6.0095,166.41,166.35,23.776884]
[1729503384692,6.0095,166.41,166.37,23.776884]
[1729503384899,15.0186,166.46,166.38,1.50419743]
[1729503385102,6.0099,166.39,166.37,23.776884]
[1729503385404,6.0099,166.39,166.38,27.68700703]
[1729503385786,6.0099,166.39,166.38,23.776884]
[1729503386710,6.0115,166.35,166.33,3.00840931]
[1729503386908,22.4055,166.42,166.3,0.68223503]
[1729503387223,20.0,166.41,166.31,3.91117625]
[1729503387508,6.013,166.31,166.28,2.40687769]
[1729503387725,6.013,166.31,166.29,1.50472373]
[1729503388006,6.013,166.31,166.3,1.50472373]
[1729503388516,6.013,166.31,166.26,2.40687769]
[1729503388690,6.013,166.31,166.28,23.776884]
[1729503389097,6.0132,166.3,166.29,25.2817145]
[1729503389498,6.0103,166.38,166.3,23.776884]
[1729503389702,15.0249,166.39,166.31,1.5048305]
[1729503389887,15.0249,166.39,166.32,23.776884]
[1729503390494,15.0249,166.39,166.33,1.50449683]
[1729503390818,30.048,166.4,166.27,0.6829652]
[1729503390989,6.0137,166.29,166.28,27.68878492]
[1729503391192,6.0137,166.29,166.28,25.28146128]
[1729503391602,6.0137,166.29,166.28,1.50457728]
[1729503391815,22.6278,166.34,166.23,2.4080281]
[1729503391989,22.6278,166.34,166.21,11.7591064]
[1729503391990,20.0,166.33,166.21,11.7591064]
[1729503392316,6.0157,166.23,166.22,1.50528358]
[1729503392500,6.0161,166.22,166.21,11.7591064]
[1729503392698,6.0161,166.22,166.21,13.26458911]
[1729503392906,6.0161,166.22,166.21,11.7591064]
[1729503393216,6.0161,166.22,166.21,13.26457705]
[1729503393413,26.0164,166.21,166.2,11.75942755]
[1729503393617,26.0164,166.21,166.2,8.06722755]
[1729503394100,6.0164,166.21,166.2,8.06722755]
[1729503394303,6.0164,166.21,166.2,5.8796475]
[1729503394511,16.7236,166.25,166.1,2.40969691]
[1729503394512,6.0182,166.17,166.1,2.40969691]
[1729503394691,6.0182,166.17,166.07,3.69491853]
[1729503394692,6.0182,166.17,166.11,3.91571928]
[1729503394889,6.0182,166.17,166.12,3.91571928]
[1729503395098,6.0182,166.17,166.13,3.91571928]
[1729503395299,6.0182,166.17,166.09,0.68397723]
[1729503395300,6.0182,166.17,166.14,1.50602237]
[1729503395516,6.0182,166.17,166.15,1.50602237]
[1729503395721,6.0182,166.17,166.16,1.50602237]
[1729503395906,15.0403,166.22,166.16,1.50602237]
[1729503395907,6.0173,166.19,166.16,1.50602237]
[1729503396114,6.0173,166.19,166.17,1.50602237]
[1729503396307,6.0173,166.19,166.18,1.50602237]
[1729503396827,6.0173,166.19,166.18,1.50587269]
[1729503396998,15.0403,166.22,166.16,1.50587269]
[1729503397315,6.0177,166.18,166.17,1.50587737]
[1729503398293,16.6236,166.25,166.1,3.01174538]
[1729503398599,26.41027818,166.24,166.11,1.50597348]
[1729503398794,6.0197,166.13,166.12,1.50597348]
[1729503399193,6.019,166.14,166.12,1.50597348]
[1729503399425,6.019,166.14,166.13,1.50597348]
[1729503399793,15.0409,166.22,166.13,1.50597348]
[1729503400015,6.0184,166.16,166.14,1.50597348]
[1729503400194,6.0184,166.16,166.15,1.50597348]
[1729503400394,6.0184,166.16,166.15,1.506143]
[1729503400812,6.0184,166.16,166.12,23.776884]
[1729503401019,6.0184,166.16,166.14,23.776884]
[1729503401213,6.0184,166.16,166.15,1.506143]
[1729503402414,6.0184,166.16,166.14,23.776884]
[1729503402819,6.0177,166.18,166.14,23.776884]
[1729503402997,6.0177,166.18,166.14,38.875884]
[1729503403195,6.017,166.2,166.14,38.875884]
[1729503403396,6.0172,166.19,166.16,23.776884]
[1729503403597,6.0172,166.19,166.18,23.776884]
[1729503404105,17.6576549,166.25,166.18,23.776884]
[1729503404502,6.0172,166.2,166.18,23.776884]
[1729503407325,6.0172,166.2,166.19,25.28266443]
[1729503408102,6.0178,166.18,166.15,3.01142109]
[1729503408300,6.0178,166.18,166.16,1.5058545]
[1729503408505,6.0178,166.18,166.17,1.5058545]
[1729503409332,15.0397,166.23,166.17,25.2827385]
[1729503409621,6.0172,166.19,166.18,25.2827385]
[1729503409827,15.0397,166.23,166.18,25.28274783]
[1729503410019,6.0168,166.2,166.18,23.776884]
[1729503411602,6.0172,166.19,166.18,23.776884]
[1729503411825,6.0172,166.19,166.18,1.5058294]
[1729503412026,6.0172,166.19,166.15,3.01172671]
[1729503412027,30.0769,166.24,166.13,2.4094013]
[1729503412324,6.0186,166.15,166.14,1.50598155]
[1729503412523,16.7236,166.25,166.14,1.50598155]
[1729503412524,6.3176,166.21,166.14,1.5061703]
[1729503412831,6.0197,166.12,166.1,2.40987248]
[1729503413038,6.0197,166.12,166.11,1.50632839]
[1729503413612,30.0842,166.2,166.09,1.50632839]
[1729503413933,6.0201,166.11,166.1,25.2833666]
[1729503414130,6.0201,166.11,166.1,1.5064826]
[1729503414306,31.6216,166.17,166.07,3.0123406]
[1729503414307,6.0208,166.09,166.08,1.50660353]
[1729503414513,6.0203,166.11,166.08,1.50660543]
[1729503414825,6.0197,166.12,166.09,1.50660543]
[1729503415130,15.0475,166.15,166.1,1.50660543]
[1729503415333,6.0201,166.11,166.08,2.41056566]
[1729503415627,6.0201,166.11,166.09,25.2834024]
[1729503415837,6.0201,166.11,166.1,1.5065184]
[1729503417134,6.0209,166.09,166.08,1.50658213]
[1729503417431,6.0211,166.08,166.05,2.41053142]
[1729503417611,6.0211,166.08,166.06,3.91718516]
[1729503417818,6.0211,166.08,166.07,1.50665374]
[1729503418012,6.0208,166.09,166.07,1.50665374]
[1729503418215,6.0189,166.15,166.08,7.52755374]
[1729503418434,20.1,166.24,166.1,23.776884]
[1729503418435,15.0431,166.19,166.1,23.776884]
[1729503418733,30.086,166.19,166.11,1.50665374]
[1729503418911,30.086,166.19,166.1,23.776884]
[1729503419112,30.086,166.19,166.11,1.50647225]
[1729503419311,6.02,166.12,166.1,23.776884]
[1729503419525,6.02,166.12,166.11,1.50648636]
[1729503420518,6.0186,166.15,166.12,23.776884]
[1729503420738,6.0185,166.16,166.12,23.776884]
[1729503420909,6.0185,166.16,166.13,1.50636276]
[1729503421113,6.0185,166.16,166.14,25.28324676]
[1729503421323,6.0185,166.16,166.14,23.776884]
[1729503425634,1.03428018,166.21,166.13,23.776884]
[1729503425834,6.3693,166.25,166.15,23.776884]
[1729503426139,6.3693,166.25,166.11,14.16625196]
[1729503426140,6.3693,166.25,166.17,23.776884]
[1729503426510,6.0164,166.21,166.17,23.776884]
[1729503427335,6.0164,166.21,166.19,23.776884]
[1729503428119,6.0161,166.22,166.19,23.776884]
[1729503428335,6.3693,166.25,166.17,23.776884]
[1729503428639,6.3693,166.25,166.19,23.776884]
[1729503430427,6.0165,166.21,166.19,23.776884]
[1729503430819,30.8349,166.26,166.18,23.776884]
[1729503431228,30.8349,166.26,166.2,23.776884]
[1729503431639,6.0164,166.22,166.2,23.776884]
[1729503431834,30.8349,166.26,166.2,23.776884]
[1729503432041,6.0164,166.22,166.2,23.776884]
[1729503433445,6.015,166.25,166.2,23.776884]
[1729503433630,15.0375,166.26,166.2,23.776884]
[1729503433631,6.0158,166.23,166.2,23.776884]
[1729503433941,6.0148,166.26,166.19,15.0428]
[1729503434142,6.0148,166.26,166.2,29.793584]
[1729503434353,6.0148,166.26,166.22,23.776884]
[1729503434525,15.0339,166.3,166.22,23.776884]
[1729503434846,6.0139,166.28,166.24,23.776884]
[1729503435546,6.0139,166.28,166.23,23.776884]
[1729503435751,6.0139,166.28,166.23,29.792484]
[1729503436123,6.0139,166.28,166.24,1.50535381]
[1729503436327,6.0139,166.28,166.25,23.776884]
[1729503436618,6.0139,166.28,166.24,23.776884]
[1729503436840,6.0147,166.26,166.24,23.776884]
[1729503437326,30.0643,166.31,166.19,6.1126]
[1729503437530,15.0339,166.29,166.2,3.91423201]
[1729503437841,6.0153,166.25,166.21,1.50547385]
[1729503438048,6.0153,166.25,166.22,1.50547385]
[1729503438242,6.0153,166.25,166.2,2.40875816]
[1729503438438,6.0153,166.25,166.21,1.50548003]
[1729503438642,6.0139,166.29,166.24,23.776884]
[1729503439249,6.0142,166.28,166.23,23.776884]
[1729503439547,6.0152,166.25,166.23,23.776884]
[1729503440046,6.4512,166.32,166.23,23.776884]
[1729503440344,6.0153,166.24,166.23,23.776884]
[1729503441458,6.0151,166.25,166.23,23.776884]
[1729503441826,6.4512,166.32,166.23,23.776884]
[1729503442043,6.0146,166.27,166.22,23.776884]
[1729503442245,6.0146,166.27,166.23,1.50541623]
[1729503442424,6.0146,166.27,166.22,23.776884]
[1729503442625,6.0143,166.27,166.24,23.776884]
[1729503443134,6.014,166.28,166.24,23.776884]
[1729503444353,6.0149,166.26,166.24,23.776884]
[1729503446233,6.0142,166.28,166.23,23.776884]
[1729503446656,6.0138,166.29,166.23,6.0156]
[1729503446848,6.014,166.28,166.24,23.776884]
[1729503447351,6.0143,166.27,166.22,29.792884]
[1729503447547,6.0143,166.27,166.24,23.776884]
[1729503448061,6.0143,166.27,166.23,23.776884]
[1729503448267,6.0143,166.27,166.25,23.776884]
[1729503448765,21.483,166.32,166.25,23.776884]
[1729503448946,6.0135,166.3,166.26,1.50536745]
[1729503449141,6.0135,166.3,166.28,23.776884]
[1729503449340,6.0134,166.3,166.25,23.776884]
[1729503449546,6.0134,166.3,166.27,23.776884]
[1729503449758,6.0134,166.3,166.25,23.776884]
[1729503449962,6.0134,166.3,166.27,23.776884]
[1729503451041,6.0134,166.3,166.26,23.776884]
[1729503451372,6.0134,166.3,166.25,6.015]
[1729503451373,12.66328909,166.36,166.28,23.776884]
[1729503451671,1.04590569,166.37,166.28,23.776884]
[1729503451841,21.1748,166.4,166.31,23.776884]
[1729503452041,7.19618099,166.4,166.32,1.5049198]
[1729503452260,6.0128,166.32,166.28,3.00943981]
[1729503452466,6.0128,166.32,166.29,27.68945048]
[1729503452667,6.0128,166.32,166.3,1.50483326]
[1729503452972,6.0128,166.32,166.29,23.776884]
[1729503453149,6.0128,166.32,166.3,1.50481297]
[1729503453466,6.0128,166.32,166.29,23.776884]
[1729503453654,6.0128,166.32,166.3,1.50483964]
[1729503453855,6.0128,166.32,166.29,23.776884]
[1729503454247,15.0258,166.38,166.31,23.776884]
[1729503454449,6.0119,166.34,166.31,23.776884]
[1729503454763,6.0119,166.34,166.3,23.776884]
[1729503455073,6.0119,166.34,166.32,23.776884]
[1729503455646,15.0267,166.37,166.28,23.776884]
[1729503455861,15.0267,166.37,166.3,23.776884]
[1729503456065,6.0125,166.32,166.3,23.776884]
[1729503456857,15.0267,166.37,166.29,23.776884]
[1729503457161,15.0267,166.37,166.31,23.776884]
[1729503457953,20.0,166.39,166.31,23.776884]
[1729503458154,6.0118,166.34,166.31,23.776884]
[1729503458873,6.0122,166.33,166.31,23.776884]
[1729503459563,6.20164737,166.41,166.31,23.776884]
[1729503459564,21.22504737,166.41,166.31,23.776884]
[1729503459758,6.01,166.39,166.33,29.788684]
[1729503459961,6.01,166.39,166.35,23.776884]
[1729503460779,6.4179,166.44,166.36,23.776884]
[1729503461278,15.0202,166.45,166.38,23.776884]
[1729503461477,6.0091,166.42,166.37,23.776884]
[1729503462058,15.0202,166.45,166.37,23.776884]
[1729503462391,6.0103,166.38,166.33,23.776884]
[1729503462688,6.0114,166.35,166.34,1.5042414]
[1729503462971,15.0249,166.39,166.29,6.0134]
[1729503463278,6.0118,166.34,166.3,3.91178624]
[1729503463481,6.0118,166.34,166.31,1.50453339]
[1729503463671,6.0118,166.34,166.29,8.42065285]
[1729503463869,6.0118,166.34,166.3,1.50460781]
[1729503464070,6.0114,166.35,166.31,1.50460781]
[1729503464371,6.0114,166.35,166.29,8.42065285]
[1729503464580,6.0114,166.35,166.31,23.776884]
[1729503465377,6.0117,166.34,166.33,23.776884]
[1729503465881,15.0249,166.39,166.33,23.776884]
[1729503466076,6.0115,166.35,166.33,23.776884]
[1729503467976,15.0249,166.39,166.33,23.776884]
[1729503468180,6.0117,166.34,166.33,23.776884]
[1729503468370,6.0114,166.35,166.33,23.776884]
[1729503471858,6.0117,166.35,166.33,23.776884]
[1729503472063,15.0249,166.39,166.33,23.776884]
[1729503472376,6.0116,166.35,166.33,23.776884]
[1729503476774,6.0117,166.34,166.33,23.776884]
[1729503477174,15.0267,166.37,166.29,3.00898295]
[1729503477372,6.0122,166.33,166.3,3.91180104]
[1729503477581,6.0122,166.33,166.31,1.50453886]
[1729503477787,6.0122,166.33,166.32,1.50453886]
[1729503478375,6.0122,166.33,166.32,25.28142286]
[1729503478791,20.0,166.39,166.33,23.776884]
[1729503479100,6.0117,166.35,166.33,23.776884]
[1729503480701,15.0242,166.4,166.33,23.776884]
[1729503480990,6.0114,166.35,166.32,23.776884]
[1729503481201,6.0114,166.35,166.34,23.776884]
[1729503483089,6.0098,166.4,166.34,31.29271622]
[1729503483295,6.0102,166.39,166.36,23.776884]
[1729503483493,6.2252,166.44,166.36,23.776884]
[1729503483795,6.2252,166.44,166.35,15.0283]
[1729503483796,6.2252,166.44,166.38,23.776884]
[1729503483967,6.0093,166.41,166.37,23.776884]
[1729503484167,6.0096,166.4,166.39,23.776884]
[1729503488777,15.0201,166.45,166.39,23.776884]
[1729503489297,6.0096,166.4,166.39,23.776884]
[1729503491092,6.0109,166.37,166.32,6.70218922]
[1729503491298,6.0115,166.35,166.33,3.91079205]
[1729503491479,6.0115,166.35,166.34,1.50415079]
[1729503492582,6.0114,166.35,166.34,1.50415079]
[1729503492781,6.4981,166.41,166.31,18.85314126]
[1729503492992,6.4981,166.41,166.32,1.50444036]
[1729503493198,6.0112,166.36,166.33,1.50444036]
[1729503493399,6.0112,166.36,166.34,1.50444036]
[1729503493701,21.5213,166.41,166.35,1.50438837]
[1729503493702,6.0103,166.38,166.35,1.50438837]
[1729503493880,6.0103,166.38,166.36,25.28127237]
[1729503494076,22.9122,166.46,166.34,23.776884]
[1729503494293,15.0204,166.44,166.36,23.776884]
[1729503494498,6.0103,166.39,166.37,1.50422518]
[1729503494705,6.0103,166.38,166.37,23.776884]
[1729503495582,6.0103,166.38,166.37,25.28109249]
[1729503497191,6.0099,166.4,166.38,23.776884]
[1729503497881,6.0089,166.42,166.38,23.776884]
[1729503498201,6.0084,166.44,166.4,23.776884]
[1729503498380,6.0084,166.44,166.41,1.50402917]
[1729503498578,6.0084,166.44,166.4,23.776884]
[1729503498782,6.0084,166.44,166.42,23.776884]
[1729503498979,6.0084,166.44,166.4,23.776884]
[1729503499202,6.0084,166.44,166.42,23.776884]
[1729503500494,15.015,166.5,166.42,23.776884]
[1729503500699,6.0076,166.46,166.42,23.776884]
[1729503501094,30.24629369,166.51,166.42,23.776884]
[1729503501302,30.24629369,166.51,166.39,3.00741756]
[1729503501303,6.0056,166.51,166.44,6.0079]
[1729503501606,6.0056,166.51,166.45,23.776884]
[1729503501984,6.0056,166.51,166.46,1.50363069]
[1729503502193,6.0056,166.51,166.45,29.784484]
[1729503502408,6.6023915,166.52,166.47,23.776884]
[1729503502610,0.5970915,166.52,166.47,29.783884]
[1729503502825,0.5970915,166.52,166.49,23.776884]
[1729503503506,0.5970915,166.52,166.49,29.783084]
[1729503503688,0.5970915,166.52,166.51,23.776884]
[1729503504296,0.5970915,166.52,166.51,25.27979153]
[1729503505081,0.5970915,166.52,166.51,31.28539153]
[1729503505285,0.5970915,166.52,166.51,29.782484]
[1729503505492,0.5970915,166.52,166.51,33.68976411]
[1729503506705,0.5970915,166.52,166.51,27.68416411]
[1729503507010,0.5970915,166.52,166.51,25.27968404]
[1729503507514,6.6022915,166.52,166.51,1.50280004]
[1729503507685,6.6022915,166.52,166.46,3.69881268]
[1729503507686,6.0057,166.51,166.47,2.40471969]
[1729503508006,6.0057,166.51,166.48,1.50296002]
[1729503508209,6.0057,166.51,166.49,1.50296002]
[1729503508508,6.0057,166.51,166.5,1.50296002]
[1729503508702,6.0057,166.51,166.46,2.40471969]
[1729503509011,6.0057,166.51,166.47,3.90775256]
[1729503509212,6.0057,166.51,166.49,23.776884]
[1729503509412,0.5970915,166.52,166.49,23.776884]
[1729503509588,0.5970915,166.52,166.5,1.50298621]
[1729503509783,6.6023915,166.52,166.5,1.50298621]
[1729503510899,6.6023915,166.52,166.51,1.50298621]
[1729503512496,6.6023915,166.52,166.51,1.50280925]
[1729503514493,6.0067,166.48,166.47,2.40468116]
[1729503514688,6.0067,166.48,166.47,1.50306829]
[1729503515406,0.5970915,166.52,166.45,1.50306829]
[1729503515407,20.5970915,166.52,166.45,1.50306829]
[1729503515707,6.0085,166.43,166.42,2.40528195]
[1729503515900,50.6251915,166.52,166.42,2.40528195]
[1729503515901,6.0081,166.44,166.42,3.90862726]
[1729503516093,6.0081,166.44,166.4,0.69012749]
[1729503516094,15.0159,166.49,166.43,3.90863731]
[1729503516292,6.0076,166.46,166.43,1.50332204]
[1729503516498,6.0078,166.45,166.44,1.50332204]
[1729503517922,6.0085,166.43,166.4,2.40531527]
[1729503518090,6.0085,166.43,166.41,3.90883188]
[1729503518432,6.0085,166.43,166.42,1.50351661]
[1729503519095,6.0076,166.46,166.43,23.776884]
[1729503519419,6.0076,166.46,166.44,3.90883188]
[1729503519596,6.0076,166.46,166.45,1.50351661]
[1729503521016,20.0,166.48,166.4,2.40545603]
[1729503521314,6.0085,166.43,166.41,3.90896245]
[1729503521615,6.0085,166.43,166.42,1.50350642]
[1729503523410,6.0085,166.43,166.37,21.4296]
[1729503523721,6.0085,166.43,166.42,1.50351706]
[1729503524316,15.0142,166.51,166.43,23.776884]
[1729503524521,15.0142,166.51,166.44,1.50351706]
[1729503524817,15.0142,166.51,166.45,25.28040106]
[1729503524992,15.0142,166.51,166.46,1.50351706]
[1729503525198,15.0142,166.51,166.45,23.776884]
[1729503525402,6.007,166.48,166.46,1.50327059]
[1729503525710,6.006,166.5,166.47,1.50317409]
[1729503525897,6.0071,166.47,166.45,23.776884]
[1729503526096,6.0071,166.47,166.46,1.50317371]
[1729503529018,0.5970915,166.52,166.47,1.5031145]
[1729503529214,0.5970915,166.52,166.48,1.5031145]
[1729503529411,0.5970915,166.52,166.46,2.40498377]
[1729503529618,0.5970915,166.52,166.47,1.5031694]
[1729503529804,0.5970915,166.52,166.45,23.776884]
[1729503530004,0.5970915,166.52,166.46,1.503163]
[1729503530211,6.0067,166.49,166.47,1.503163]
[1729503530410,6.0067,166.49,166.45,23.776884]
[1729503530617,6.0067,166.49,166.46,1.5031683]
[1729503530922,6.0067,166.49,166.47,1.5031683]
[1729503531121,6.0067,166.49,166.45,23.776884]
[1729503531300,6.0067,166.49,166.46,1.50317058]
[1729503531622,6.0067,166.48,166.47,1.50317058]
[1729503533000,0.5970915,166.52,166.47,1.50317058]
[1729503533198,0.5970915,166.52,166.48,1.50317058]
[1729503533398,0.5970915,166.52,166.47,23.776884]
[1729503533621,6.0061,166.5,166.48,1.50309563]
[1729503533819,0.5970915,166.52,166.46,23.776884]
[1729503533820,6.6024915,166.52,166.46,23.776884]
[1729503534021,0.5970915,166.52,166.48,23.776884]
[1729503534231,0.5970915,166.52,166.5,23.776884]
[1729503534407,0.5970915,166.52,166.51,25.27985364]
[1729503542222,0.5970915,166.52,166.51,27.68422067]
[1729503542921,6.6022915,166.52,166.51,3.90733667]
[1729503543126,6.6022915,166.52,166.51,1.50296964]
[1729503543315,6.0057,166.51,166.46,2.40446065]
[1729503543522,6.0057,166.51,166.45,16.3800205]
[1729503543523,6.6023915,166.52,166.47,3.9073345]
[1729503543829,0.15033197,166.5,166.48,3.9073345]
[1729503544007,0.15033197,166.5,166.49,3.9073345]
[1729503544208,0.15033197,166.5,166.46,15.0177]
[1729503544422,0.15033197,166.5,166.49,23.776884]
[1729503544625,0.15033197,166.5,166.49,27.68419457]
[1729503544926,0.15033197,166.5,166.49,33.69049457]
[1729503546535,0.15033197,166.5,166.49,27.68419457]
[1729503547628,0.15033197,166.5,166.49,30.68981809]
[1729503548035,0.15033197,166.5,166.49,30.68903634]
[1729503548226,0.15033197,166.5,166.49,27.68375271]
[1729503548634,0.15033197,166.5,166.49,30.68903634]
[1729503549313,0.15033197,166.5,166.49,3.90686871]
[1729503549517,0.15033197,166.5,166.49,1.50264181]
[1729503549816,0.15033197,166.5,166.49,3.90686871]
[1729503550030,0.15033197,166.5,166.49,1.50264181]
[1729503550536,0.15033197,166.5,166.49,27.68375271]
[1729503550912,0.15033197,166.5,166.49,33.69005271]
[1729503551419,0.5970915,166.52,166.51,21.534]
[1729503551614,0.5970915,166.52,166.51,52.22289115]
[1729503552239,0.5970915,166.52,166.51,46.90773063]
[1729503552448,0.5970915,166.52,166.51,46.21729115]
[1729503552737,0.74742347,166.52,166.51,46.21729115]
[1729503553618,0.74742347,166.52,166.51,22.44040715]
[1729503553817,0.74742347,166.52,166.51,3.90678665]
[1729503554541,0.74742347,166.52,166.51,12.91760715]
[1729503555247,0.74742347,166.52,166.51,37.38493063]
[1729503555542,0.74742347,166.52,166.51,36.69449115]
[1729503555748,0.74742347,166.52,166.51,37.3857775]
[1729503556041,0.74742347,166.52,166.51,36.69449115]
[1729503557242,0.74742347,166.52,166.51,37.38583654]
[1729503558041,0.74742347,166.52,166.51,36.69449115]
[1729503558439,0.74742347,166.52,166.51,42.74339115]
[1729503558940,0.74742347,166.52,166.51,7.60384659]
[1729503559742,0.74742347,166.52,166.51,6.91200715]
[1729503560329,0.74742347,166.52,166.51,30.68889115]
[1729503562020,0.74742347,166.52,166.51,36.69449115]
[1729503562228,15.2116,166.62,166.59,23.776884]
[1729503562229,6.0017,166.62,166.59,23.776884]
[1729503562444,6.002,166.61,166.6,1.50261025]
[1729503563147,6.0027,166.6,166.55,26.78115716]
[1729503563456,6.0027,166.6,166.57,23.776884]
[1729503563649,6.0027,166.6,166.58,3.90554936]
[1729503563822,6.0027,166.6,166.59,3.90554936]
[1729503564251,15.0024,166.64,166.59,3.90554936]
[1729503564553,6.0009,166.64,166.6,3.90542608]
[1729503564723,6.0014,166.63,166.61,1.50213437]
[1729503564917,6.0014,166.63,166.62,1.50213437]
[1729503565254,6.0009,166.64,166.62,1.50213437]
[1729503565421,6.0009,166.64,166.63,1.50213437]
[1729503566645,6.0006,166.65,166.63,1.50188907]
[1729503566822,6.0013,166.64,166.6,2.40302251]
[1729503567022,6.0013,166.64,166.61,3.90491131]
[1729503567245,6.0013,166.64,166.62,1.5018888]
[1729503567428,6.0013,166.64,166.63,1.5018888]
[1729503568153,6.002,166.61,166.6,2.40302251]